fUST/lending_fUST_20260507
["ID","MTS","AMOUNT","RATE_DAILY","PERIOD"]
[421777597,1778141441000,-500.0,0.00010958,2]
[421777604,1778141441000,-500.0,0.00010958,2]
[421777594,1778141441000,-500.0,0.00010958,2]
[421777593,1778141441000,-500.0,0.00010958,2]
[421777595,1778141441000,-500.0,0.00010958,2]
[421777585,1778141441000,-500.0,0.00010958,2]
[421777583,1778141441000,-500.0,0.00010958,2]
[421777584,1778141441000,-500.0,0.00010958,2]
[421777586,1778141441000,-500.0,0.00010958,2]
[421777592,1778141441000,-500.0,0.00010958,2]
[421777596,1778141441000,-500.0,0.00010958,2]
[421777582,1778141441000,-500.0,0.00010958,2]
[421777600,1778141441000,-500.0,0.00010958,2]
[421777605,1778141441000,-500.0,0.00010958,2]
[421777601,1778141441000,-500.0,0.00010958,2]
[421777598,1778141441000,-500.0,0.00010958,2]
[421777602,1778141441000,-598.49,0.00010958,2]
[421777607,1778141441000,-500.0,0.00010958,2]
[421777606,1778141441000,-500.0,0.00010958,2]
[421777608,1778141441000,-300.0,0.00011073,2]
[421777610,1778141441000,-300.0,0.00011073,2]
[421777609,1778141441000,-300.0,0.00011073,2]
[421777612,1778141441000,-300.0,0.00011073,2]
[421777613,1778141441000,-300.0,0.00011073,2]
[421777617,1778141441000,-300.0,0.00011073,2]
[421777590,1778141441000,-500.0,0.00010958,2]
[421777599,1778141441000,-500.0,0.00010958,2]
[421777589,1778141441000,-500.0,0.00010958,2]
[421777571,1778141441000,-500.0,0.00010958,2]
[421777588,1778141441000,-500.0,0.00010958,2]
[421777557,1778141441000,-500.0,0.00010958,2]
[421777556,1778141441000,-500.0,0.00010958,2]
[421777558,1778141441000,-500.0,0.00010958,2]
[421777559,1778141441000,-500.0,0.00010958,2]
[421777560,1778141441000,-500.0,0.00010958,2]
[421777561,1778141441000,-501.49,0.00010958,2]
[421777562,1778141441000,-500.0,0.00010958,2]
[421777563,1778141441000,-500.0,0.00010958,2]
[421777564,1778141441000,-606.09,0.00010958,2]
[421777567,1778141441000,-787.14,0.00010958,2]
[421777566,1778141441000,-500.0,0.00010958,2]
[421777565,1778141441000,-500.0,0.00010958,2]
[421777568,1778141441000,-267.4320013,0.00010958,2]
[421777619,1778141441000,-300.0,0.00011073,2]
[421777572,1778141441000,-500.0,0.00010958,2]
[421777573,1778141441000,-500.0,0.00010958,2]
[421777569,1778141441000,-500.0,0.00010958,2]
[421777570,1778141441000,-500.0,0.00010958,2]
[421777575,1778141441000,-500.0,0.00010958,2]
[421777574,1778141441000,-500.0,0.00010958,2]
[421777576,1778141441000,-3229.54,0.00010958,2]
[421777577,1778141441000,-500.0,0.00010958,2]
[421777578,1778141441000,-500.0,0.00010958,2]
[421777579,1778141441000,-500.0,0.00010958,2]
[421777581,1778141441000,-651.45,0.00010958,2]
[421777580,1778141441000,-500.0,0.00010958,2]
[421777587,1778141441000,-744.47,0.00010958,2]
[421777591,1778141441000,-500.0,0.00010958,2]
[421777615,1778141441000,-300.0,0.00011073,2]
[421777603,1778141441000,-500.0,0.00010958,2]
[421777616,1778141441000,-300.0,0.00011073,2]
[421777648,1778141441000,-500.0,0.00011232,2]
[421777644,1778141441000,-426.95,0.00011232,2]
[421777646,1778141441000,-500.0,0.00011232,2]
[421777653,1778141441000,-500.0,0.00011232,2]
[421777656,1778141441000,-500.0,0.00011232,2]
[421777655,1778141441000,-500.0,0.00011232,2]
[421777657,1778141441000,-500.0,0.00011232,2]
[421777654,1778141441000,-339.28,0.00011232,2]
[421777659,1778141441000,-389.27,0.00011232,2]
[421777662,1778141441000,-500.0,0.00011232,2]
[421777658,1778141441000,-500.0,0.00011232,2]
[421777664,1778141441000,-170.7,0.00011232,2]
[421777660,1778141441000,-500.0,0.00011232,2]
[421777663,1778141441000,-500.0,0.00011232,2]
[421777666,1778141441000,-232.04,0.00011232,2]
[421777674,1778141441000,-341.88,0.00011232,2]
[421777673,1778141441000,-523.01,0.00011232,2]
[421777665,1778141441000,-299.66,0.00011232,2]
[421777675,1778141441000,-500.0,0.00011232,2]
[421777667,1778141441000,-176.5,0.00011232,2]
[421777669,1778141441000,-500.0,0.00011232,2]
[421777671,1778141441000,-328.8,0.00011232,2]
[421777676,1778141441000,-500.0,0.00011232,2]
[421777668,1778141441000,-218.2,0.00011232,2]
[421777670,1778141441000,-535.03,0.00011232,2]
[421777614,1778141441000,-300.0,0.00011073,2]
[421777672,1778141441000,-500.0,0.00011232,2]
[421777643,1778141441000,-500.0,0.00011232,2]
[421777647,1778141441000,-500.0,0.00011232,2]
[421777661,1778141441000,-263.42,0.00011232,2]
[421777645,1778141441000,-500.0,0.00011232,2]
[421777618,1778141441000,-300.0,0.00011073,2]
[421777641,1778141441000,-423.81,0.00011232,2]
[421777620,1778141441000,-300.0,0.00011073,2]
[421777622,1778141441000,-300.0,0.00011073,2]
[421777621,1778141441000,-300.0,0.00011073,2]
[421777623,1778141441000,-4557.83406587,0.00011153,2]
[421777624,1778141441000,-408.4534512,0.00011225,2]
[421777626,1778141441000,-500.0,0.00011232,2]
[421777625,1778141441000,-171.67,0.00011232,2]
[421777628,1778141441000,-176.57,0.00011232,2]
[421777627,1778141441000,-197.85,0.00011232,2]
[421777630,1778141441000,-500.0,0.00011232,2]
[421777629,1778141441000,-500.0,0.00011232,2]
[421777636,1778141441000,-281.85,0.00011232,2]
[421777611,1778141441000,-300.0,0.00011073,2]
[421777631,1778141441000,-500.0,0.00011232,2]
[421777637,1778141441000,-490.09,0.00011232,2]
[421777651,1778141441000,-449.63,0.00011232,2]
[421777638,1778141441000,-219.88,0.00011232,2]
[421777652,1778141441000,-428.72,0.00011232,2]
[421777650,1778141441000,-162.44,0.00011232,2]
[421777649,1778141441000,-619.23,0.00011232,2]
[421777642,1778141441000,-500.0,0.00011232,2]
[421777632,1778141441000,-150.88,0.00011232,2]
[421777634,1778141441000,-317.98,0.00011232,2]
[421777640,1778141441000,-466.94,0.00011232,2]
[421777635,1778141441000,-279.17,0.00011232,2]
[421777633,1778141441000,-470.02,0.00011232,2]
[421777717,1778141442000,-573.6,0.00011506,2]
[421777720,1778141442000,-500.0,0.00011506,2]
[421777718,1778141442000,-382.59,0.00011506,2]
[421777715,1778141442000,-349.71,0.00011506,2]
[421777710,1778141442000,-500.0,0.00011232,2]
[421777712,1778141442000,-500.0,0.00011232,2]
[421777713,1778141442000,-410.32,0.00011232,2]
[421777716,1778141442000,-500.0,0.00011506,2]
[421777709,1778141442000,-301.77,0.00011232,2]
[421777719,1778141442000,-514.52,0.00011506,2]
[421777721,1778141442000,-500.0,0.00011506,2]
[421777714,1778141442000,-600.0,0.00011293,2]
[421777727,1778141442000,-500.0,0.00011506,2]
[421777722,1778141442000,-500.0,0.00011506,2]
[421777724,1778141442000,-500.0,0.00011506,2]
[421777725,1778141442000,-167.5,0.00011506,2]
[421777726,1778141442000,-500.0,0.00011506,2]
[421777738,1778141442000,-500.0,0.00011506,2]
[421777731,1778141442000,-500.0,0.00011506,2]
[421777730,1778141442000,-500.0,0.00011506,2]
[421777733,1778141442000,-500.0,0.00011506,2]
[421777728,1778141442000,-376.05,0.00011506,2]
[421777736,1778141442000,-500.0,0.00011506,2]
[421777732,1778141442000,-634.02,0.00011506,2]
[421777708,1778141442000,-744.47,0.00011232,2]
[421777729,1778141442000,-500.0,0.00011506,2]
[421777723,1778141442000,-298.2,0.00011506,2]
[421777707,1778141442000,-436.87,0.00011232,2]
[421777677,1778141442000,-500.0,0.00011232,2]
[421777697,1778141442000,-460.06,0.00011232,2]
[421777737,1778141442000,-166.0,0.00011506,2]
[421777678,1778141442000,-500.0,0.00011232,2]
[421777679,1778141442000,-951.14,0.00011232,2]
[421777682,1778141442000,-500.0,0.00011232,2]
[421777685,1778141442000,-500.0,0.00011232,2]
[421777683,1778141442000,-1039.81,0.00011232,2]
[421777681,1778141442000,-500.0,0.00011232,2]
[421777684,1778141442000,-1039.77,0.00011232,2]
[421777686,1778141442000,-500.0,0.00011232,2]
[421777687,1778141442000,-500.0,0.00011232,2]
[421777689,1778141442000,-176.75,0.00011232,2]
[421777680,1778141442000,-200.87,0.00011232,2]
[421777688,1778141442000,-500.0,0.00011232,2]
[421777690,1778141442000,-500.0,0.00011232,2]
[421777693,1778141442000,-291.54,0.00011232,2]
[421777702,1778141442000,-3229.54,0.00011232,2]
[421777703,1778141442000,-500.0,0.00011232,2]
[421777692,1778141442000,-500.0,0.00011232,2]
[421777701,1778141442000,-500.0,0.00011232,2]
[421777705,1778141442000,-651.45,0.00011232,2]
[421777704,1778141442000,-500.0,0.00011232,2]
[421777694,1778141442000,-500.0,0.00011232,2]
[421777696,1778141442000,-500.0,0.00011232,2]
[421777700,1778141442000,-500.0,0.00011232,2]
[421777698,1778141442000,-500.0,0.00011232,2]
[421777695,1778141442000,-500.0,0.00011232,2]
[421777699,1778141442000,-787.14,0.00011232,2]
[421777706,1778141442000,-500.0,0.00011232,2]
[421777734,1778141442000,-535.03,0.00011506,2]
[421777691,1778141442000,-500.0,0.00011232,2]
[421777739,1778141442000,-316.8,0.00011506,2]
[421777773,1778141442000,-273.61789419,0.00011547,2]
[421777774,1778141442000,-650.0,0.00011547,2]
[421777776,1778141442000,-265.37746114,0.00011547,2]
[421777772,1778141442000,-156.0,0.00011547,2]
[421777775,1778141442000,-167.0,0.00011547,2]
[421777777,1778141442000,-6853.03760312,0.00011642,2]
[421777778,1778141442000,-162.380719,0.000117,2]
[421777780,1778141442000,-537.6845,0.000117,2]
[421777779,1778141442000,-537.6845,0.000117,2]
[421777786,1778141442000,-557.5788265,0.00011755,2]
[421777785,1778141442000,-325.7282482,0.00011703,2]
[421777782,1778141442000,-325.7282482,0.00011703,2]
[421777788,1778141442000,-500.0,0.0001178,2]
[421777771,1778141442000,-156.0,0.00011547,2]
[421777781,1778141442000,-326.1729927,0.00011703,2]
[421777783,1778141442000,-151.0,0.00011703,2]
[421777787,1778141442000,-186.51,0.0001178,2]
[421777789,1778141442000,-500.0,0.0001178,2]
[421777798,1778141442000,-535.03,0.0001178,2]
[421777791,1778141442000,-223.32,0.0001178,2]
[421777795,1778141442000,-500.0,0.0001178,2]
[421777793,1778141442000,-202.08,0.0001178,2]
[421777794,1778141442000,-500.0,0.0001178,2]
[421777790,1778141442000,-500.0,0.0001178,2]
[421777792,1778141442000,-498.8,0.0001178,2]
[421777796,1778141442000,-500.0,0.0001178,2]
[421777797,1778141442000,-500.0,0.0001178,2]
[421777735,1778141442000,-513.92,0.00011506,2]
[421777784,1778141442000,-456.3009281,0.00011703,2]
[421777770,1778141442000,-341.0,0.00011547,2]
[421777711,1778141442000,-500.0,0.00011232,2]
[421777769,1778141442000,-341.0,0.00011547,2]
[421777741,1778141442000,-500.0,0.00011506,2]
[421777751,1778141442000,-500.0,0.00011506,2]
[421777746,1778141442000,-500.0,0.00011506,2]
[421777742,1778141442000,-500.0,0.00011506,2]
[421777747,1778141442000,-500.0,0.00011506,2]
[421777745,1778141442000,-500.0,0.00011506,2]
[421777749,1778141442000,-150.26,0.00011506,2]
[421777744,1778141442000,-1039.77,0.00011506,2]
[421777740,1778141442000,-951.14,0.00011506,2]
[421777750,1778141442000,-500.0,0.00011506,2]
[421777748,1778141442000,-500.0,0.00011506,2]
[421777763,1778141442000,-500.0,0.00011506,2]
[421777764,1778141442000,-744.47,0.00011506,2]
[421777753,1778141442000,-158.47,0.00011506,2]
[421777743,1778141442000,-1039.81,0.00011506,2]
[421777754,1778141442000,-500.0,0.00011506,2]
[421777752,1778141442000,-326.93896414,0.00011506,2]
[421777766,1778141442000,-500.0,0.00011506,2]
[421777767,1778141442000,-500.0,0.00011506,2]
[421777768,1778141442000,-650.0,0.00011547,2]
[421777760,1778141442000,-500.0,0.00011506,2]
[421777761,1778141442000,-500.0,0.00011506,2]
[421777765,1778141442000,-500.0,0.00011506,2]
[421777757,1778141442000,-223.92988995,0.00011506,2]
[421777759,1778141442000,-3229.54,0.00011506,2]
[421777758,1778141442000,-500.0,0.00011506,2]
[421777756,1778141442000,-787.14,0.00011506,2]
[421777755,1778141442000,-500.0,0.00011506,2]
[421777762,1778141442000,-651.45,0.00011506,2]
[421777820,1778141443000,-500.0,0.0001178,2]
[421777828,1778141443000,-578.20924308,0.0001181,2]
[421777826,1778141443000,-500.0,0.0001178,2]
[421777827,1778141443000,-795.0,0.000118,2]
[421777825,1778141443000,-500.0,0.0001178,2]
[421777822,1778141443000,-500.0,0.0001178,2]
[421777831,1778141443000,-2215.0,0.00011841,2]
[421777834,1778141443000,-741.0,0.00011841,2]
[421777844,1778141443000,-500.0,0.00011927,2]
[421777833,1778141443000,-442.0,0.00011841,2]
[421777836,1778141443000,-599.60298507,0.00011865,2]
[421777837,1778141443000,-500.0,0.00011919,2]
[421777838,1778141443000,-500.0,0.00011919,2]
[421777842,1778141443000,-461.27161685,0.00011919,2]
[421777832,1778141443000,-1411.0,0.00011841,2]
[421777840,1778141443000,-500.0,0.00011919,2]
[421777843,1778141443000,-621.78829552,0.0001192,2]
[421777821,1778141443000,-651.45,0.0001178,2]
[421777835,1778141443000,-185.0,0.00011841,2]
[421777824,1778141443000,-500.0,0.0001178,2]
[421777841,1778141443000,-500.0,0.00011919,2]
[421777829,1778141443000,-167.23,0.00011819,2]
[421777799,1778141443000,-468.43,0.0001178,2]
[421777800,1778141443000,-500.0,0.0001178,2]
[421777801,1778141443000,-951.14,0.0001178,2]
[421777802,1778141443000,-527.66,0.0001178,2]
[421777803,1778141443000,-500.0,0.0001178,2]
[421777810,1778141443000,-500.0,0.0001178,2]
[421777804,1778141443000,-1039.81,0.0001178,2]
[421777839,1778141443000,-500.0,0.00011919,2]
[421777813,1778141443000,-500.0,0.0001178,2]
[421777823,1778141443000,-744.47,0.0001178,2]
[421777815,1778141443000,-787.14,0.0001178,2]
[421777812,1778141443000,-500.0,0.0001178,2]
[421777816,1778141443000,-500.0,0.0001178,2]
[421777808,1778141443000,-500.0,0.0001178,2]
[421777806,1778141443000,-500.0,0.0001178,2]
[421777809,1778141443000,-500.0,0.0001178,2]
[421777807,1778141443000,-307.91,0.0001178,2]
[421777819,1778141443000,-500.0,0.0001178,2]
[421777830,1778141443000,-647.0,0.00011841,2]
[421777818,1778141443000,-3229.54,0.0001178,2]
[421777805,1778141443000,-1039.77,0.0001178,2]
[421777811,1778141443000,-500.0,0.0001178,2]
[421777870,1778141443000,-500.0,0.00012054,2]
[421777849,1778141443000,-4961.0,0.00011975,2]
[421777871,1778141443000,-500.0,0.00012054,2]
[421777878,1778141443000,-639.93,0.00012054,2]
[421777881,1778141443000,-500.0,0.00012054,2]
[421777884,1778141443000,-500.0,0.00012054,2]
[421777880,1778141443000,-651.45,0.00012054,2]
[421777879,1778141443000,-500.0,0.00012054,2]
[421777874,1778141443000,-500.0,0.00012054,2]
[421777882,1778141443000,-744.47,0.00012054,2]
[421777876,1778141443000,-500.0,0.00012054,2]
[421777873,1778141443000,-528.37,0.00012054,2]
[421777877,1778141443000,-3229.54,0.00012054,2]
[421777875,1778141443000,-787.14,0.00012054,2]
[421777872,1778141443000,-500.0,0.00012054,2]
[421777883,1778141443000,-206.93,0.00012054,2]
[421777886,1778141443000,-175.77,0.0001206,2]
[421777889,1778141443000,-1178.98896994,0.00012103,2]
[421777885,1778141443000,-500.0,0.00012054,2]
[421777887,1778141443000,-693.3919763,0.00012085,2]
[421777888,1778141443000,-65593.73878574,0.00012103,2]
[421777868,1778141443000,-500.0,0.00012054,2]
[421777845,1778141443000,-721.0,0.00011975,2]
[421777867,1778141443000,-1039.77,0.00012054,2]
[421777866,1778141443000,-1039.81,0.00012054,2]
[421777857,1778141443000,-500.0,0.00012054,2]
[421777847,1778141443000,-278.0,0.00011975,2]
[421777848,1778141443000,-155.0,0.00011975,2]
[421777851,1778141443000,-49999.999999,0.00012,2]
[421777852,1778141443000,-668.65185757,0.0001203,2]
[421777855,1778141443000,-500.0,0.00012054,2]
[421777854,1778141443000,-155.0,0.00012053,2]
[421777856,1778141443000,-211.24,0.00012054,2]
[421777863,1778141443000,-500.0,0.00012054,2]
[421777846,1778141443000,-1411.0,0.00011975,2]
[421777850,1778141443000,-644.79446246,0.00011975,2]
[421777869,1778141443000,-500.0,0.00012054,2]
[421777859,1778141443000,-642.02,0.00012054,2]
[421777858,1778141443000,-500.0,0.00012054,2]
[421777861,1778141443000,-500.0,0.00012054,2]
[421777860,1778141443000,-500.0,0.00012054,2]
[421777862,1778141443000,-535.03,0.00012054,2]
[421777865,1778141443000,-500.0,0.00012054,2]
[421777864,1778141443000,-951.14,0.00012054,2]
[421777853,1778141443000,-155.0,0.00012053,2]
[421777940,1778141445000,-420.8168224,0.00010958,2]
[421778121,1778141447000,-79.1831776,0.00010958,2]
[421778122,1778141447000,-500.0,0.00011232,2]
[421778123,1778141447000,-500.0,0.00011232,2]
[421778124,1778141447000,-144.74671235,0.00011506,2]
[421778125,1778141490000,200.0,0.00019035,120]
[421778131,1778141683000,2375.32,8.16e-05,2]
[421778132,1778141730000,200.0,0.00016348,120]
[421778133,1778141734000,192.8371093,0.00019178,120]
[421778134,1778141850000,200.0,0.00019007,120]
[421778135,1778141970000,200.0,0.00018359,120]
[421778136,1778142090000,200.0,0.00018512,120]
[421778137,1778142190000,175.303594,4.83e-05,2]
[421778138,1778142211000,200.0,0.00017605,120]
[421778142,1778142390000,200.0,0.00017037,120]
[421778143,1778142451000,200.0,0.00017593,120]
[421778144,1778142570000,200.0,0.00018196,120]
[421778169,1778142635000,-300.0,9.506e-05,2]
[421778173,1778142635000,-175.303594,9.66e-05,2]
[421778176,1778142635000,-420.0,0.00010457,2]
[421778172,1778142635000,-338.92878037,9.509e-05,2]
[421778177,1778142635000,-183.0,0.00010457,2]
[421778168,1778142635000,-300.0,9.506e-05,2]
[421778174,1778142635000,-1680.0,0.00010302,2]
[421778170,1778142635000,-300.0,9.506e-05,2]
[421778167,1778142635000,-5000.0,9.366e-05,2]
[421778166,1778142635000,-1200.0,9.365e-05,2]
[421778165,1778142635000,200.0,0.00017504,120]
[421778164,1778142635000,-5000.0,9.272e-05,2]
[421778171,1778142635000,-300.0,9.506e-05,2]
[421778175,1778142635000,-334.0,0.00010457,2]
[421778193,1778142635000,-329.36836901,0.00010958,2]
[421778178,1778142635000,-151.0,0.00010881,2]
[421778189,1778142635000,-321.9763659,0.00010958,2]
[421778190,1778142635000,-752.98,0.00010958,2]
[421778192,1778142635000,-823.15,0.00010958,2]
[421778179,1778142635000,-325.7282482,0.00010881,2]
[421778188,1778142635000,-178.0236341,0.00010958,2]
[421778186,1778142635000,-500.0,0.00010958,2]
[421778191,1778142635000,-500.0,0.00010958,2]
[421778184,1778142635000,-500.0,0.00010958,2]
[421778185,1778142635000,-500.0,0.00010958,2]
[421778183,1778142635000,-500.0,0.00010958,2]
[421778181,1778142635000,-500.0,0.00010958,2]
[421778180,1778142635000,-500.0,0.00010958,2]
[421778182,1778142635000,-500.0,0.00010958,2]
[421778187,1778142635000,-500.0,0.00010958,2]
[421778263,1778142638000,-590.281188,0.00011131,2]
[421778265,1778142638000,-590.281188,0.00011131,2]
[421778267,1778142638000,-590.281188,0.00011131,2]
[421778269,1778142638000,-590.281188,0.00011131,2]
[421778270,1778142638000,-590.281188,0.00011131,2]
[421778272,1778142638000,-590.281188,0.00011131,2]
[421778295,1778142638000,-500.0,0.00011131,2]
[421778276,1778142638000,-590.281188,0.00011131,2]
[421778285,1778142638000,-590.281188,0.00011131,2]
[421778280,1778142638000,-590.281188,0.00011131,2]
[421778274,1778142638000,-590.281188,0.00011131,2]
[421778287,1778142638000,-198.58205905,0.00011131,2]
[421778261,1778142638000,-451.58468627,0.00011131,2]
[421778278,1778142638000,-590.281188,0.00011131,2]
[421778259,1778142638000,-590.281188,0.00011131,2]
[421778237,1778142638000,-500.0,0.00010958,2]
[421778257,1778142638000,-9231.0,0.0001113,2]
[421778226,1778142638000,-500.0,0.00010958,2]
[421778224,1778142638000,-170.63163099,0.00010958,2]
[421778229,1778142638000,-823.18,0.00010958,2]
[421778231,1778142638000,-500.0,0.00010958,2]
[421778233,1778142638000,-500.0,0.00010958,2]
[421778235,1778142638000,-500.0,0.00010958,2]
[421778245,1778142638000,-500.0,0.00010958,2]
[421778247,1778142638000,-500.0,0.00010958,2]
[421778241,1778142638000,-2556.72,0.00010958,2]
[421778239,1778142638000,-623.15,0.00010958,2]
[421778303,1778142638000,-500.0,0.00011131,2]
[421778249,1778142638000,-515.73,0.00010958,2]
[421778243,1778142638000,-637.2,0.00010958,2]
[421778253,1778142638000,-589.37,0.00010958,2]
[421778251,1778142638000,-500.0,0.00010958,2]
[421778255,1778142638000,-500.0,0.00010958,2]
[421778291,1778142638000,-215.46532883,0.00011131,2]
[421778282,1778142638000,-590.281188,0.00011131,2]
[421778299,1778142638000,-157.98468062,0.00011131,2]
[421778322,1778142638000,-500.0,0.00011131,2]
[421778336,1778142638000,-500.0,0.00011131,2]
[421778337,1778142638000,-590.28118801,0.00011131,2]
[421778340,1778142638000,-590.28118801,0.00011131,2]
[421778338,1778142638000,-590.28118801,0.00011131,2]
[421778347,1778142638000,-180.21486844,0.00011132,2]
[421778333,1778142638000,-500.0,0.00011131,2]
[421778348,1778142638000,-4376.76680772,0.00011132,2]
[421778341,1778142638000,-590.28118801,0.00011131,2]
[421778346,1778142638000,-166.10928038,0.00011131,2]
[421778343,1778142638000,-590.28118801,0.00011131,2]
[421778345,1778142638000,-590.28118801,0.00011131,2]
[421778342,1778142638000,-590.28118801,0.00011131,2]
[421778344,1778142638000,-590.28118801,0.00011131,2]
[421778339,1778142638000,-590.28118801,0.00011131,2]
[421778335,1778142638000,-500.0,0.00011131,2]
[421778331,1778142638000,-500.0,0.00011131,2]
[421778320,1778142638000,-500.0,0.00011131,2]
[421778301,1778142638000,-590.281188,0.00011131,2]
[421778289,1778142638000,-500.0,0.00011131,2]
[421778297,1778142638000,-500.0,0.00011131,2]
[421778305,1778142638000,-500.0,0.00011131,2]
[421778307,1778142638000,-500.0,0.00011131,2]
[421778309,1778142638000,-500.0,0.00011131,2]
[421778311,1778142638000,-590.281188,0.00011131,2]
[421778313,1778142638000,-500.0,0.00011131,2]
[421778316,1778142638000,-500.0,0.00011131,2]
[421778326,1778142638000,-500.0,0.00011131,2]
[421778314,1778142638000,-500.0,0.00011131,2]
[421778318,1778142638000,-590.281188,0.00011131,2]
[421778328,1778142638000,-500.0,0.00011131,2]
[421778324,1778142638000,-500.0,0.00011131,2]
[421778330,1778142638000,-500.0,0.00011131,2]
[421778349,1778142638000,-14539.36141053,0.00011132,2]
[421778293,1778142638000,-590.281188,0.00011131,2]
[421778369,1778142643000,-35543.20667192,0.00011132,2]
[421778371,1778142646000,-8041.43013989,0.00011132,2]
[421778372,1778142646000,-13793.15493209,0.00011132,2]
[421778370,1778142646000,-253.7425319,0.00011132,2]
[421778373,1778142646000,-17684.00283227,0.00011132,2]
[421778376,1778142647000,-43307.45299669,0.00011132,2]
[421778375,1778142647000,-9145.54176067,0.00011132,2]
[421778374,1778142647000,-927.19930424,0.00011132,2]
[421780517,1778142690000,200.0,0.00017945,120]
[421780529,1778142801000,7451.62823053,0.00019,120]
[421780530,1778142810000,200.0,0.00019147,120]
[421780531,1778142837000,5000.0,8.16e-05,2]
[421780534,1778142842000,1500.0,8.16e-05,2]
[421780535,1778142845000,5000.0,8.16e-05,2]
[421780538,1778142930000,200.0,0.00016839,120]
[421780539,1778143050000,200.0,0.00017168,120]
[421780542,1778143163000,167.003956,4.99e-05,2]
[421780543,1778143164000,167.003956,5.443e-05,2]
[421780544,1778143164000,167.003956,5.897e-05,2]
[421780546,1778143164000,167.003956,6.804e-05,2]
[421780547,1778143164000,167.003956,7.258e-05,2]
[421780545,1778143164000,167.003956,6.351e-05,2]
[421780548,1778143165000,167.003956,7.711e-05,2]
[421780549,1778143231000,200.0,0.00016207,120]
[421780550,1778143244000,5000.0,8.16e-05,2]
[421780551,1778143251000,4205.56757735,8.16e-05,2]
[421780552,1778143266000,5000.0,8.16e-05,2]
[421780553,1778143288000,5000.0,8.16e-05,2]
[421780554,1778143290000,200.0,0.00017198,120]
[421780555,1778143296000,5000.0,8.16e-05,2]
[421780557,1778143311000,5000.0,8.16e-05,2]
[421780558,1778143333000,5000.0,8.16e-05,2]
[421780559,1778143354000,5000.0,8.16e-05,2]
[421780560,1778143377000,5000.0,8.16e-05,2]
[421780562,1778143399000,5000.0,8.16e-05,2]
[421780563,1778143410000,200.0,0.00016182,120]
[421780564,1778143421000,5000.0,8.16e-05,2]
[421780565,1778143444000,5000.0,8.16e-05,2]
[421780566,1778143466000,5000.0,8.16e-05,2]
[421780567,1778143470000,200.0,0.00017453,120]
[421780568,1778143488000,4992.49173182,8.16e-05,2]
[421780572,1778143710000,200.0,0.00016195,120]
[421780573,1778143830000,200.0,0.00017524,120]
[421780600,1778143832000,-167.003956,9.526e-05,2]
[421780593,1778143832000,-167.003956,8.165e-05,2]
[421780597,1778143832000,-90.26936136,8.278e-05,2]
[421780601,1778143832000,-25.06754659,9.979e-05,2]
[421780598,1778143832000,-167.003956,8.619e-05,2]
[421780599,1778143832000,-167.003956,9.072e-05,2]
[421780602,1778143832000,-141.93640941,9.979e-05,2]
[421780603,1778143832000,-3450.06938786,0.00010203,2]